[Event "Kvika Banki League Iceland 2022-23"]
[Site "Reykjavik"]
[Date "2022.10.15"]
[Round "4.4"]
[White "Thorfinnsson, Bragi"]
[Black "Hansen, Soren Bech"]
[Result "1-0"]
[ECO "B84"]
[WhiteElo "2421"]
[BlackElo "2275"]
[Annotator "TA"]
[PlyCount "125"]
[EventDate "2022.10.13"]
[EventType "team-tourn"]
[EventCountry "ISL"]
[SourceTitle "playchess.com"]
[Source "ChessBase"]
[SourceQuality "1"]
[TimeControl "5400+30"]

{[%evp 17,125,53,56,58,58,52,57,61,0,-34,0,-1,0,0,79,67,91,58,55,53,52,64,56,44,61,50,60,62,63,58,46,45,85,85,189,52,56,34,39,33,29,0,0,0,183,182,170,155,345,342,356,352,352,344,427,167,175,152,139,-111,114,-161,0,-170,-164,-235,0,-22,18,10,30,0,0,0,31,22,17,6,12,0,172,153,201,199,257,257,260,263,175,177,279,275,578,538,856,860,753,756,928,874,862,621,900,800,778,770,948,948,864,835]} 1. e4 {[%emt 0:02:22]} c5 {[%emt 0:00:07]} 2. Nc3 {[%emt 0:00:42]} a6 {[%emt 0:00:33]} 3. Nf3 {[%emt 0:06:09]} e6 {[%emt 0:03:55]} 4. d4 {[%emt 0:01:20]} cxd4 {[%emt 0:00:45]} 5. Nxd4 {[%emt 0:00:06]} Qc7 {[%emt 0:01:40]} 6. Be2 {[%emt 0:03:50]} Nf6 {[%emt 0:00:44]} 7. O-O {[%emt 0:04:55]} d6 {[%emt 0:06:58]} 8. f4 {[%emt 0:09:51]} b5 {[%emt 0:08:44][%cal Bb7b5,Bb5b4][%mdl 32]} 9. Bf3 {[%emt 0:03:51]} Bb7 {[%emt 0:00:11]} 10. e5 $1 {[%emt 0:01:12] B84: Sicilian Scheveningen: 6 Be2 a6, lines without early Be3.} dxe5 {[%emt 0:01:00]} 11. fxe5 {[%emt 0:02:59]} Nfd7 {[%emt 0:00:32]} 12. Bxb7 {[%emt 0:05:37] White is slightly better.} Qxb7 {[%emt 0:00:07]} 13. Bf4 {[%emt 0:06:34]} b4 {[%emt 0:12:39]} 14. Na4 {[%emt 0:02:11]} Nc5 {[%emt 0:00:45] [#]} 15. c3 $146 {[%emt 0:06:47]} ({Predecessor:} 15. Nxc5 Bxc5 16. Kh1 O-O 17. Nb3 Be7 18. Qe2 Nd7 19. Rae1 Rac8 20. Rf3 Qb5 21. Rd3 {1-0 (35) Sibarevic,M (2340)-Lakic,N (2380) Banja Luka 1976}) 15... Nc6 {[%emt 0:07:28]} (15... Nxa4 $11 {keeps the balance.} 16. Qxa4+ Nd7) 16. Kh1 $16 {[%emt 0:10:31]} Nxd4 {[%emt 0:17:39]} 17. Nxc5 {[%emt 0:01:08]} Bxc5 {[%emt 0:00:19]} 18. cxd4 {[%emt 0:00:05]} Be7 {[%emt 0:04:03]} 19. Qg4 $1 {[%emt 0:03:18]} g5 {[%emt 0:03:33]} 20. Be3 $1 {[%emt 0:01:32] aiming for Qh5.} h5 {[%emt 0:00:37]} 21. Qe2 {[%emt 0:00:20]} Qe4 {[%emt 0:03:05]} 22. Rae1 {[%emt 0:03:39]} Qg6 {[%emt 0:10:55]} 23. Rc1 {[%emt 0:03:45] Black must now prevent Rc7.} O-O {[%emt 0:01:07]} 24. Rc7 {[%emt 0:00:18]} Bd8 {[%emt 0:01:12]} 25. Rc6 {[%emt 0:03:40] White has more active pieces. The black rooks are badly placed.} a5 {[%emt 0:01:37]} (25... Qe4 $16 26. Rfc1 a5) 26. Rfc1 {[%emt 0:02:32]} ({White should try} 26. d5 $18 {Threatens to win with Bc5.} Qe4 27. Qxh5 Qxd5 28. Rd6 (28. Bc5 Qxc6 29. Bxf8 Qe8 $16)) 26... Qe4 $14 {[%emt 0:02:44]} 27. Qd2 {[%emt 0:01:00]} g4 {[%emt 0:00:16]} 28. Bh6 $36 {[%emt 0:02:19][%mdl 2048] White is more active.} Re8 {[%emt 0:00:07]} 29. Rd6 {[%emt 0:00:07]} Qg6 {[%emt 0:01:37]} 30. d5 {[%emt 0:01:19][%cal Bd4d5,Bd5d6,Bd6d7][%mdl 32]} Be7 $2 {[%emt 0:00:58]} (30... Qf5 $11) 31. Rdc6 $18 {[%emt 0:00:28]} Kh7 {[%emt 0:04:34]} 32. Bf4 {[%emt 0:00:48]} Qe4 $2 {[%emt 0:02:27]} (32... Ra7 $16 33. d6 Bd8) 33. d6 {[%emt 0:01:23]} (33. dxe6 Red8 34. Qf2 Qxc6 35. Rxc6 Rd1+ 36. Qg1 Rxg1+ 37. Kxg1 Kg8 38. exf7+ Kxf7 $16) 33... Bd8 {[%emt 0:02:36]} 34. d7 {[%emt 0:04:16]} Rg8 {[%emt 0:00:11]} 35. Rc8 {[%emt 0:00:08] Against Rb8} Ra7 {[%emt 0:00:38][%cal Ba8a7,Ba7b7,Bb7b5,Bb5c5][%mdl 32]} 36. Re1 $2 {[%emt 0:03:04]} (36. Be3 Rb7 37. Rf1) 36... Qf5 {[%emt 0:00:44]} 37. Qd4 {[%emt 0:00:37]} Rb7 {[%emt 0:00:13]} 38. b3 $2 {[%emt 0:01:02]} (38. Rd1 $1 $16 {is forced if you want to stay better.}) 38... h4 $2 {[%emt 0:00:02] [#]} (38... Rb5 $1 $17 {keeps the pressure on.}) 39. Rcc1 $2 {[%emt 0:01:45][%mdl 8192]} (39. Rd1 $1 $16 {is necessary to keep the advantage.}) 39... h3 $2 {[%emt 0:00:30]} (39... Bb6 $19 40. Qd2 Rd8) 40. Rc6 $2 {[%emt 0:00:31]} (40. Rcd1 $1 $11) 40... Bh4 $19 {[%emt 0:01:34]} (40... Rxd7 41. Qxd7 Qxf4 42. Qd3+ Rg6 43. gxh3 (43. Qxd8 $2 Qf2 $19) 43... gxh3 44. Qxh3+ Kg7 45. Rc4 $18 (45. Rc8 Qd2 $18)) 41. g3 {[%emt 0:01:02]} (41. Bg3 $142 hxg2+ 42. Kg1 Bxg3 43. hxg3) 41... Bd8 $2 {[%emt 0:00:19]} ({Black should play} 41... Be7 $19 {...Rd8 is the strong threat.} 42. Kg1 Rd8) 42. Kg1 {[%emt 0:00:57]} Rb5 {[%emt 0:00:46]} (42... Be7 $5 {[%cal Rg8d8]}) 43. Rd6 {[%emt 0:01:05] Inhibits Rd5.} Qc2 {[%emt 0:00:34][%csl Gh3][%cal Rc2g2]} 44. Qd3+ {[%emt 0:00:35]} (44. Bd2 $5 {[%cal Re1f1]}) 44... Qxd3 {[%emt 0:00:06]} 45. Rxd3 {[%emt 0:00:03]} Rc5 {[%emt 0:01:04]} 46. Red1 {[%emt 0:00:09]} Kg6 {[%emt 0:00:21]} 47. Kf1 {[%emt 0:00:27]} f6 {[%emt 0:00:41]} 48. Rd6 {[%emt 0:00:55][%cal Bd3d6,Bd6a6,Ba6a8][%mdl 32]} Kf5 $2 {[%emt 0:00:22] White stays focused until the end.} (48... Rc2 $1 $11 {and Black is okay.}) 49. exf6 $18 {[%emt 0:00:11]} Rf8 {[%emt 0:00:21] [#]} (49... Kxf6 $16 {might work better.} 50. Re1 Kf7) 50. Ra6 $1 {[%emt 0:00:31]} ({Resist} 50. Be3 $6 Rc2 $14) 50... Kxf6 {[%emt 0:00:49]} (50... e5 $142) 51. Bd6 {[%emt 0:00:34]} Rf5+ {[%emt 0:00:11]} 52. Ke2 {[%emt 0:00:03]} Rf7 {[%emt 0:00:15]} 53. Bf4 {[%emt 0:00:14] Hoping for Ra8.} Ke7 {[%emt 0:01:23]} (53... Rg7 {is a better defense.} 54. Ke3 Rg6) 54. Ra8 {[%emt 0:00:46][%cal Oa8d8] Strongly threatening Rxd8!} Rd5 $2 {[%emt 0:00:00]} (54... Rxf4 {is a better chance.} 55. gxf4 Rxf4) 55. Rxd5 {[%emt 0:00:16] White is clearly winning.} Rxf4 {[%emt 0:00:00][%mdl 4096] Endgame KRR-KRB} 56. Rh5 {[%emt 0:01:54]} Rf8 {[%emt 0:00:17]} 57. Rh7+ {[%emt 0:00:20]} Kd6 {[%emt 0:00:08]} 58. Ra6+ {[%emt 0:00:17]} Kd5 {[%emt 0:00:10]} 59. Rg7 {[%emt 0:00:35]} Bf6 {[%emt 0:01:44]} 60. Rxg4 {[%emt 0:00:26]} Rd8 {[%emt 0:00:47]} 61. Rxa5+ {[%emt 0:00:05]} Kd6 {[%emt 0:00:06]} 62. Ra7 {[%emt 0:00:24]} Bc3 {[%emt 0:00:42]} 63. Rc4 {[%emt 0:00:31] Weighted Error Value: White=0.47/Black=0.52} 1-0

[Event "Kvika Banki League Iceland 2022-23"]
[Site "Reykjavik"]
[Date "2022.10.15"]
[Round "4.5"]
[White "Viglundsson, Bjorgvin"]
[Black "Jakubiec, Artur"]
[Result "0-1"]
[ECO "E61"]
[WhiteElo "2205"]
[BlackElo "2435"]
[Annotator "TA"]
[PlyCount "78"]
[EventDate "2022.10.13"]
[EventType "team-tourn"]
[EventCountry "ISL"]
[SourceTitle "playchess.com"]
[Source "ChessBase"]
[SourceQuality "1"]
[TimeControl "5400+30"]

{[%evp 10,78,20,6,38,40,70,35,31,2,4,-8,-14,0,0,-39,-46,-86,0,-90,-25,-43,-38,-75,-66,-119,-39,-77,-69,-98,-114,-111,-14,-18,0,0,0,-30,-31,-137,-134,-184,-175,-172,-185,-177,-171,-356,-371,-448,-401,-591,-461,-603,-596,-599,-572,-531,-391,-748,-729,-754,-718,-710,-749,-1062,-1057,-1037,-1025,-29989,-29990]} 1. d4 {[%emt 0:00:02]} d6 {[%emt 0:00:37]} 2. Nf3 {[%emt 0:01:26]} Nf6 {[%emt 0:00:31]} 3. c4 {[%emt 0:00:13]} g6 {[%emt 0:00:14]} 4. Nc3 {[%emt 0:00:07]} Bg7 {[%emt 0:00:05]} 5. Bg5 {[%emt 0:01:01]} h6 {[%emt 0:00:15]} 6. Bf4 {[%emt 0:00:34]} Nh5 {[%emt 0:04:34] E61: King's Indian: Early deviations for White, including Smyslov System.} 7. Be3 {[%emt 0:03:38] [#]} g5 $146 {[%emt 0:10:42][%cal Bg6g5,Bg5g4][%mdl 32]} ({Predecessor:} 7... f5 8. g3 Na6 9. Bg2 O-O 10. d5 e5 11. dxe6 Kh7 12. Bd4 Nf6 13. Nd5 Bxe6 14. Nxf6+ Bxf6 {1-0 (40) Moiseenko,A (2630)-Inarkiev,E (2669) Sochi 2007}) 8. g3 {[%emt 0:08:12]} f5 {[%emt 0:01:48] White is slightly better.} 9. d5 {[%emt 0:09:06]} c5 {[%emt 0:02:03]} 10. Bd2 {[%emt 0:08:27]} O-O {[%emt 0:02:11]} 11. e3 {[%emt 0:02:33][%cal Of3g5] aiming for Nxg5!} Nf6 {[%emt 0:02:09]} 12. h4 {[%emt 0:01:42]} g4 {[%emt 0:00:48]} 13. Ng1 {[%emt 0:00:03] [#]} e5 {[%emt 0:01:52]} (13... Nbd7 $1 $17) 14. dxe6 {[%emt 0:01:24]} (14. Nge2 $11 {remains equal.}) 14... Nc6 {[%emt 0:05:58]} (14... Bxe6 $17 15. Nge2 Bxc4) 15. Nd5 $11 {[%emt 0:14:49]} Bxe6 {[%emt 0:01:10]} 16. Nf4 {[%emt 0:00:20]} Bf7 {[%emt 0:01:36]} 17. Bc3 {[%emt 0:08:54] [#]} (17. Bd3 $15) 17... Ne5 {[%emt 0:10:08]} (17... Ne4 18. Bxg7 Kxg7 19. Bd3 $11) ({Better is} 17... d5 $1 $17 {[%cal Rd5d4] Hoping for ...d4.} 18. Nge2 d4 19. exd4 cxd4 20. Nxd4 Qe8+ 21. Nde2 (21. Be2 $2 Rd8 $19) 21... Rd8) 18. Bd3 {[%emt 0:03:36]} Qc8 {[%emt 0:07:43]} ({Reject} 18... Ne4 $6 19. Bxe4 fxe4 20. Qc2 $15) 19. Qc2 {[%emt 0:03:34]} Qc6 $36 {[%emt 0:00:14][%mdl 2048] Black is in control.} 20. Rh2 {[%emt 0:00:17]} Ne4 {[%emt 0:03:34] Black has more active pieces.} (20... Nxd3+ $17 21. Qxd3 Qe4) 21. Bxe5 {[%emt 0:05:46]} Bxe5 {[%emt 0:06:01]} 22. Nge2 {[%emt 0:02:04]} Rfe8 {[%emt 0:00:49]} 23. Nd5 {[%emt 0:01:10]} b5 {[%emt 0:02:47] Strongly threatening ...bxc4.} 24. Nef4 {[%emt 0:02:36] Black converts the advantage convincingly.} ({Of course not} 24. Bxe4 fxe4 25. O-O-O (25. Rd1 bxc4 26. Qxc4 Bxb2 $17) 25... bxc4 26. Qxc4 Qb7 $17) (24. Rd1 $15) 24... bxc4 $17 {[%emt 0:01:43]} 25. Bxc4 {[%emt 0:00:38]} (25. Bxe4 $17 {was called for.} fxe4 26. Rd1) 25... Rab8 $19 {[%emt 0:03:38]} 26. Rb1 {[%emt 0:00:43]} Bxf4 {[%emt 0:03:42]} 27. Nxf4 {[%emt 0:00:32]} d5 {[%emt 0:00:08]} 28. Bb3 {[%emt 0:05:24]} (28. Bd3) 28... Qb7 {[%emt 0:02:11]} 29. Kf1 {[%emt 0:02:43]} Red8 {[%emt 0:01:49]} 30. Rg2 {[%emt 0:03:19]} (30. Ne2 $142 d4 31. Bxf7+ Qxf7 32. exd4) 30... Qb4 {[%emt 0:02:20]} 31. Kg1 {[%emt 0:03:50]} c4 {[%emt 0:01:55] Inhibits Nd3.} 32. Ba4 {[%emt 0:00:16]} d4 {[%emt 0:03:55]} 33. exd4 {[%emt 0:03:18]} Rxd4 {[%emt 0:00:15]} 34. Bc6 $2 {[%emt 0:00:50]} (34. a3 Qb6 35. Rd1) 34... Rd2 {[%emt 0:01:13]} 35. Bxe4 {[%emt 0:01:21]} Rxc2 {[%emt 0:00:07]} 36. Bxc2 {[%emt 0:00:11]} Qd2 {[%emt 0:00:31]} 37. f3 {[%emt 0:01:44]} Qe3+ {[%emt 0:01:14]} 38. Rf2 {[%emt 0:00:05]} gxf3 {[%emt 0:01:23][%cal Ob8b2] White must now prevent ...Rxb2!} 39. Bd1 {[%emt 0:01:10]} Qe1+ {[%emt 0:00:28] Weighted Error Value: White=0.87/Black=0.18 (very precise)} 0-1

[Event "Kvika Banki League Iceland 2022-23"]
[Site "Reykjavik"]
[Date "2022.10.15"]
[Round "4.6"]
[White "Gunnarsson, Jon Viktor"]
[Black "Bergthorsson, Jon Thor"]
[Result "1-0"]
[ECO "D00"]
[WhiteElo "2447"]
[BlackElo "2145"]
[Annotator "TA"]
[PlyCount "59"]
[EventDate "2022.10.13"]
[EventType "team-tourn"]
[EventCountry "ISL"]
[SourceTitle "playchess.com"]
[Source "ChessBase"]
[SourceQuality "1"]
[TimeControl "5400+30"]

{[%evp 9,59,7,20,30,31,26,41,58,39,26,28,-125,-129,-190,-196,-199,-200,-191,-190,-237,-217,-224,-197,-162,-65,-58,-62,-57,-53,-56,94,61,111,121,278,279,301,268,471,467,650,655,644,600,618,551,813,777,879,833,847,813]} 1. d4 {[%emt 0:09:33]} d5 {[%emt 0:02:05]} 2. Nc3 {[%emt 0:00:07]} Nf6 {[%emt 0:01:23]} 3. Bf4 {[%emt 0:03:52]} c6 {[%emt 0:00:12]} 4. Qd2 {[%emt 0:01:03]} Bf5 {[%emt 0:00:12]} 5. f3 {[%emt 0:00:06]} e6 {[%emt 0:03:41]} 6. g4 {[%emt 0:01:05] D00: 1 d4 d5: Unusual lines.} Bg6 {[%emt 0:00:16]} 7. h4 {[%emt 0:00:15] Hoping for h5.} h5 {[%emt 0:00:25]} 8. g5 {[%emt 0:00:22] White is slightly better.} Nfd7 {[%emt 0:02:06]} 9. e4 {[%emt 0:04:46]} Bb4 {[%emt 0:03:10]} 10. Bd3 $2 {[%emt 0:08:58] [#]} (10. a3 $11 Bxc3 11. Qxc3) 10... e5 $1 $17 {[%emt 0:02:34] [#]} 11. dxe5 $146 {[%emt 0:06:59]} (11. Be3 $17 c5 12. a3 cxd4 13. axb4 dxe3 14. Qh2 (14. Qxe3 $2 d4 $19)) ({Predecessor:} 11. Be3 c5 12. a3 cxd4 13. axb4 dxe3 14. Qh2 d4 15. Nd5 Nc6 16. Bb5 Rc8 17. Ne2 {1-0 (39) Bozzano,E (1933)-Martinez,F (1516) Timbo 2021}) 11... d4 $19 {[%emt 0:02:44]} 12. Nge2 {[%emt 0:01:15]} dxc3 {[%emt 0:00:14]} 13. bxc3 {[%emt 0:00:06]} Ba5 {[%emt 0:01:02]} 14. Bg3 {[%emt 0:00:31]} (14. Bc4 $142) 14... Nc5 {[%emt 0:04:35]} 15. a4 {[%emt 0:08:32]} Nba6 {[%emt 0:07:40]} 16. O-O {[%emt 0:03:36]} Nxd3 {[%emt 0:03:49]} ({Black should play} 16... Bb6 $19 17. Kg2 Ne6) 17. cxd3 $15 {[%emt 0:00:38][%cal Bc2d3,Bd3d4][%mdl 32]} Nc5 {[%emt 0:01:06]} 18. Rad1 $1 {[%emt 0:01:24]} Qe7 {[%emt 0:02:25]} 19. Qc2 {[%emt 0:05:22]} O-O {[%emt 0:06:48]} (19... f6 $15 20. d4 Ne6 21. gxf6 gxf6) 20. d4 $16 {[%emt 0:04:39]} Ne6 {[%emt 0:04:01] [#]} (20... Nd7 $14) 21. f4 $1 {[%emt 0:00:00][%cal Bf3f4,Bf4f5][%mdl 32]} f5 $2 {[%emt 0:00:21]} (21... Rae8 $16) 22. gxf6 $1 $18 {[%emt 0:00:20]} gxf6 {[%emt 0:00:34]} 23. f5 {[%emt 0:00:44]} Bh7 $2 {[%emt 0:00:52]} (23... fxe5 24. fxg6 Rf6) 24. Qb3 {[%emt 0:03:22][%mdl 64] Pin. White is clearly winning.} (24. fxe6 Qxe6 25. Kh2 Bc7 $18) 24... Bc7 {[%emt 0:04:02]} 25. Nf4 {[%emt 0:00:56][%mdl 64] Pin} ({Weaker is} 25. Qxe6+ Qxe6 26. fxe6 fxe5 $16) ({Less strong is} 25. fxe6 fxe5 26. Qxb7 Bxe4 $16) 25... Kh8 {[%emt 0:01:10] Threatens to win with ...Nxf4.} 26. Nxe6 {[%emt 0:02:32]} Rg8 {[%emt 0:00:30]} 27. Kh2 {[%emt 0:00:29][%cal Bg1h2,Bh2g3,Bg3h3][%mdl 32]} Rxg3 {[%emt 0:01:14]} 28. Kxg3 {[%emt 0:00:46]} Rg8+ {[%emt 0:00:42]} 29. Kh3 {[%emt 0:01:59]} Rg4 {[%emt 0:00:31]} 30. Qb4 {[%emt 0:04:59] Quite a comeback for White.  Weighted Error Value: White=0.21 (precise) /Black=0.52} 1-0

[Event "Kvika Banki League Iceland 2022-23"]
[Site "Reykjavik"]
[Date "2022.10.15"]
[Round "4.7"]
[White "Halldorsson, Bragi"]
[Black "Kjartansson, David"]
[Result "0-1"]
[ECO "D20"]
[WhiteElo "2066"]
[BlackElo "2316"]
[Annotator "TA"]
[PlyCount "94"]
[EventDate "2022.10.13"]
[EventType "team-tourn"]
[EventCountry "ISL"]
[SourceTitle "playchess.com"]
[Source "ChessBase"]
[SourceQuality "1"]
[TimeControl "5400+30"]

{[%evp 9,94,78,79,70,83,81,66,37,55,17,13,8,51,50,43,51,42,46,50,57,177,201,181,-104,-109,-192,-219,-343,-259,-286,-221,-224,75,76,75,70,68,84,140,124,145,138,123,97,90,81,91,89,85,91,78,89,101,51,52,0,114,25,22,41,43,34,78,39,45,16,28,36,42,-262,-233,-432,-425,-424,-416,-424,-419,-737,-737,-930,-305,-1137,-1094,-1027,-990,-1029,-1397]} 1. d4 {[%emt 0:00:09]} d5 {[%emt 0:00:16]} 2. c4 {[%emt 0:00:10]} dxc4 {[%emt 0:00:08]} 3. e4 {[%emt 0:01:06][%cal Be2e4,Be4e5][%mdl 32]} Nf6 {[%emt 0:00:09]} 4. Nc3 {[%emt 0:00:39]} a6 {[%emt 0:03:58]} 5. e5 {[%emt 0:02:01]} Nd5 {[%emt 0:00:17]} 6. Bxc4 {[%emt 0:00:10] D20: Queen's Gambit Accepted: 3 e3 and 3 e4.} Nb6 {[%emt 0:00:20]} 7. Bb3 {[%emt 0:01:28]} Nc6 {[%emt 0:00:38] [#]} 8. Be3 $146 {[%emt 0:00:23] White is slightly better.} ({Predecessor:} 8. Nf3 Bf5 9. Be3 Nb4 10. O-O e6 11. a3 N4d5 12. Nxd5 Nxd5 13. Bg5 Be7 14. Bxd5 Qxd5 15. Bxe7 Kxe7 {1-0 (62) Asensio Soto,F-Garcia,R (2375) Mesa 1993}) 8... Bf5 {[%emt 0:00:17]} 9. Qf3 {[%emt 0:00:45]} ({Don't play} 9. Qh5 e6 $11) 9... e6 {[%emt 0:02:29]} 10. Nge2 {[%emt 0:00:18]} Qd7 {[%emt 0:10:53]} 11. O-O {[%emt 0:02:57]} O-O-O {[%emt 0:09:03]} 12. Rac1 {[%emt 0:01:25]} Kb8 {[%emt 0:05:27]} 13. Rfd1 {[%emt 0:00:33]} h5 {[%emt 0:08:28] Inhibits g4.} 14. h3 $1 {[%emt 0:01:46]} Nb4 {[%emt 0:09:33]} (14... Bb4 $14) 15. d5 $18 {[%emt 0:08:57]} N6xd5 {[%emt 0:00:37]} 16. a3 $2 {[%emt 0:00:28]} (16. Bg5 $18 f6 17. exf6) 16... Nd3 $17 {[%emt 0:01:28]} 17. Rxd3 {[%emt 0:06:20]} Bxd3 $19 {[%emt 0:00:09]} 18. Nf4 {[%emt 0:09:51]} (18. Nxd5 $142 exd5 19. Bf4 Bxe2 20. Qxe2) 18... Nxf4 {[%emt 0:04:19]} 19. Bxf4 {[%emt 0:00:40]} Be7 {[%emt 0:03:37]} 20. Rd1 {[%emt 0:00:43]} Qc6 $2 {[%emt 0:01:20]} 21. Rxd3 $16 {[%emt 0:00:24]} Rxd3 {[%emt 0:00:48]} 22. Qxd3 {[%emt 0:00:31]} Rd8 {[%emt 0:00:14]} 23. Qc2 {[%emt 0:04:51]} g5 {[%emt 0:00:41]} (23... Qc5 $142) 24. Be3 {[%emt 0:00:22]} g4 {[%emt 0:05:30]} 25. hxg4 {[%emt 0:01:31]} hxg4 {[%emt 0:00:06][%cal Og4g3]} 26. Ne4 {[%emt 0:01:53]} Qb5 {[%emt 0:00:40]} 27. Bf4 {[%emt 0:02:28]} Rd4 {[%emt 0:01:52][%cal Od4e4]} 28. Nc3 {[%emt 0:00:52]} Qc6 {[%emt 0:02:54]} 29. Ne2 {[%emt 0:01:39]} (29. Qc1 {is interesting.} Qb6 30. Bd1 Rxf4 31. Qxf4 Qxb2 32. Qxf7 Qxc3 33. Qxe7 Qe1+ 34. Kh2) 29... Qxc2 {[%emt 0:01:10]} 30. Bxc2 {[%emt 0:00:12]} Rd8 {[%emt 0:00:46]} 31. Kh2 {[%emt 0:03:32]} (31. Nc3 $16) 31... Rh8+ $14 {[%emt 0:01:13]} 32. Kg1 {[%emt 0:01:03]} (32. Kg3 $14) 32... Bc5 {[%emt 0:00:21] [#]} (32... Rd8 $1 $11 {remains equal.}) 33. Bd1 {[%emt 0:04:32]} ({White should play} 33. Ng3 $1 $16) 33... b5 {[%emt 0:04:42]} 34. Ng3 {[%emt 0:02:20]} Bd4 {[%emt 0:00:20]} 35. b3 {[%emt 0:00:17]} (35. Bxg4 $2 Rh4 36. Bxe6 fxe6 $19) 35... c5 {[%emt 0:00:16][%cal Bc7c5,Bc5c4,Bc4b3][%mdl 32]} 36. Kf1 {[%emt 0:00:28]} (36. Bxg4 $2 Rh4 37. Ne4 Rxg4 $19) 36... Kc7 {[%emt 0:01:53]} 37. Bxg4 {[%emt 0:04:27]} Rh4 {[%emt 0:00:36]} 38. f3 {[%emt 0:00:57]} Bb2 {[%emt 0:00:08]} 39. a4 $2 {[%emt 0:00:22][%mdl 8192] [#]} (39. Bg5 $14 {keeps the upper hand.} Rh7 40. f4) 39... c4 $1 $19 {[%emt 0:00:10]} 40. axb5 $2 {[%emt 0:00:41]} (40. Bg5 cxb3 41. Bxh4) 40... cxb3 {[%emt 0:00:38] Strongly threatening ...Ba3.} 41. Ke2 {[%emt 0:02:09]} ({But not} 41. bxa6 $2 Ba3 42. Ne4 b2) 41... a5 {[%emt 0:02:29][%cal Ba6a5,Ba5a4][%mdl 32]} 42. Kd3 {[%emt 0:02:11]} a4 {[%emt 0:00:57]} 43. Kc4 {[%emt 0:03:20]} (43. Ne4 $142 Rh1 44. b6+ Kxb6 45. Kc4) 43... Ba3 {[%emt 0:01:05] White must now prevent ...b2.} 44. Kc3 {[%emt 0:01:19]} Kb6 $2 {[%emt 0:01:09]} (44... Kb8 45. Be3 Rh8) 45. Ne2 $2 {[%emt 0:05:00]} (45. Ne4 Kxb5 46. Nd6+ Ka6 47. Nc4) 45... Rh8 {[%emt 0:03:38] aiming for ...Rc8+. Black is clearly winning.} 46. Be3+ {[%emt 0:00:30]} Ka5 {[%emt 0:01:32] And now ...Rc8+ would win.} 47. Kd3 {[%emt 0:02:18]} Rd8+ {[%emt 0:01:17] What a bad dream for White.  Weighted Error Value: White=0.77/Black=0.35} 0-1

[Event "Kvika Banki League Iceland 2022-23"]
[Site "Reykjavik"]
[Date "2022.10.15"]
[Round "4.8"]
[White "Eggleston, David J"]
[Black "Baldursson, Hrannar"]
[Result "1-0"]
[ECO "B08"]
[WhiteElo "2354"]
[BlackElo "2070"]
[Annotator "TA"]
[PlyCount "41"]
[EventDate "2022.10.13"]
[EventType "team-tourn"]
[EventCountry "ISL"]
[SourceTitle "playchess.com"]
[Source "ChessBase"]
[SourceQuality "1"]
[TimeControl "5400+30"]

{[%evp 15,41,14,70,52,59,59,63,71,72,47,42,37,79,51,70,24,81,39,84,72,72,52,74,-7,462,436,593,481]} 1. e4 {[%emt 0:00:03]} d6 {[%emt 0:00:12]} 2. d4 {[%emt 0:00:04]} Nf6 {[%emt 0:00:27]} 3. Nc3 {[%emt 0:00:05]} c6 {[%emt 0:00:19]} 4. h3 {[%emt 0:00:50]} g6 {[%emt 0:01:09]} 5. Nf3 {[%emt 0:00:07]} Bg7 {[%emt 0:00:18]} 6. Be3 {[%emt 0:00:26]} O-O {[%emt 0:03:27]} 7. Qd2 {[%emt 0:01:12]} b5 {[%emt 0:01:00]} 8. Bd3 {[%emt 0:00:11]} Re8 {[%emt 0:00:55]} ({Better is} 8... Qc7 $11) 9. O-O {[%emt 0:01:25] B08: Pirc Defence: Classical System.} e5 {[%emt 0:01:36]} 10. dxe5 {[%emt 0:01:31]} dxe5 {[%emt 0:00:09]} 11. a4 {[%emt 0:00:15] White is slightly better.} b4 {[%emt 0:01:32]} 12. Ne2 {[%emt 0:00:10]} Qe7 {[%emt 0:03:03] [#]} 13. Ng3 $146 {[%emt 0:01:18]} ({Predecessor:} 13. Rfd1 a5 14. Ng3 Rd8 15. Qe2 Nbd7 16. Bc4 h6 17. Rd3 Re8 18. Rad1 Nc5 19. Bxc5 Qxc5 {½-½ (37) Moroder,S (2129)-Molina,F (2269) Ortisei 2012}) 13... Nbd7 {[%emt 0:01:11]} 14. a5 {[%emt 0:02:14]} Nf8 {[%emt 0:04:14]} 15. Bh6 {[%emt 0:02:29]} (15. c3 $14) 15... Bh8 {[%emt 0:00:58]} (15... c5 $11) 16. Qe3 {[%emt 0:07:31]} Bd7 {[%emt 0:03:19]} 17. Rfe1 {[%emt 0:03:27]} c5 {[%emt 0:00:28]} 18. Bc4 {[%emt 0:01:42][%cal Og3f5] Strongly threatening Nf5!} Be6 {[%emt 0:09:04] Prevents Nf5.} 19. Nxe5 {[%emt 0:02:40] White is much more active. The black rooks are badly placed.} (19. Bb5 $16) 19... Nxe4 $2 {[%emt 0:09:58][%mdl 8192] [#]} 20. Qxe4 $18 {[%emt 0:01:10]} ({Less strong is} 20. Nxe4 Bxe5 21. Bb5 Rec8 $16) 20... f5 {[%emt 0:03:16]} 21. Qf4 {[%emt 0:01:16] Weighted Error Value: White=0.26 (precise) /Black=0.71} 1-0